[Event "FIDE Womens Grand Prix-I 2022-23"]
[Site "Nur-Sultan"]
[Date "2022.09.23"]
[Round "6.1"]
[White "Shuvalova, Polina"]
[Black "Abdumalik, Zhansaya"]
[Result "0-1"]
[ECO "B30"]
[WhiteElo "2510"]
[BlackElo "2503"]
[Annotator "TA"]
[PlyCount "112"]
[EventDate "2022.09.15"]
[EventType "tourn"]
[EventCountry "KAZ"]
[SourceTitle "playchess.com"]
[Source "ChessBase"]
[SourceQuality "1"]
[TimeControl "40/5400+30:1800+30"]

{[%evp 9,112,37,48,46,57,42,28,5,22,20,21,7,0,13,15,12,22,0,60,0,0,0,0,0,0,-8,0,-7,-20,-33,14,17,15,18,8,24,43,34,82,81,126,58,76,-193,-199,-193,-204,-198,-189,-184,-178,-191,-19,-10,-5,-49,-50,-50,-49,-46,0,0,0,-77,-77,-71,-68,-185,-192,-191,-183,-282,-289,-227,-67,-65,-68,-70,-69,-90,-65,-64,-66,-66,-69,-77,-71,-111,-71,-73,-73,-298,-292,-1333,-1322,-946,-946,-1633,-683,-578,-443,-29986,-29987,-29989,-29990]} 1. e4 {[%emt 0:00:03]} c5 {[%emt 0:00:05]} 2. Nf3 {[%emt 0:00:05]} Nc6 {[%emt 0:00:04]} 3. Bb5 {[%emt 0:00:06]} e5 {[%emt 0:00:07]} 4. O-O {[%emt 0:01:24]} Bd6 {[%emt 0:03:12]} 5. c3 {[%emt 0:03:10]} a6 {[%emt 0:00:27]} 6. Ba4 {[%emt 0:01:03] B30: Sicilian: 2...Nc6 3 Bb5, lines without ...g6.} b5 {[%emt 0:00:42]} 7. Bc2 {[%emt 0:00:22]} Nge7 {[%emt 0:00:51]} 8. h3 {[%emt 0:13:56] [#] White has an edge.} Bb7 $146 {[%emt 0:07:00]} ({Predecessor:} 8... O-O 9. d4 cxd4 10. cxd4 Nxd4 11. Nxd4 exd4 12. Qxd4 Qc7 13. Bb3 Bb7 {½-½ (13) Tiglon,B (2384)-Ghazarian,K (2381) San Jose 2022}) 9. d4 {[%emt 0:01:35]} cxd4 {[%emt 0:01:02]} (9... exd4 {seems wilder.} 10. cxd4 Nxd4 11. Nxd4 cxd4 12. Qxd4 Qc7) 10. cxd4 {[%emt 0:00:18]} Nxd4 {[%emt 0:00:23]} 11. Nxd4 {[%emt 0:00:12]} exd4 {[%emt 0:00:05]} 12. Qxd4 {[%emt 0:02:56]} Qc7 {[%emt 0:00:28]} 13. Bb3 {[%emt 0:03:20]} Bh2+ {[%emt 0:00:32]} 14. Kh1 {[%emt 0:00:03]} Be5 {[%emt 0:00:05]} 15. Qd3 {[%emt 0:01:51]} O-O {[%emt 0:00:25][%cal Od7d5]} 16. f4 {[%emt 0:08:34]} Bf6 {[%emt 0:00:34]} 17. e5 {[%emt 0:01:29]} (17. Kh2 $5 {[%cal Re4e5]}) 17... Qc6 {[%emt 0:00:33][%csl Gb7][%cal Rc6g2]} 18. Rg1 {[%emt 0:03:23]} Bh4 {[%emt 0:00:16]} 19. Be3 {[%emt 0:02:37] Prevents Bf2.} Rac8 {[%emt 0:08:49]} (19... d6 $15 {was preferrable.}) 20. Nd2 {[%emt 0:03:43]} Qg6 {[%emt 0:12:49]} 21. Qxd7 {[%emt 0:11:50]} Bc6 {[%emt 0:04:31]} 22. Qg4 {[%emt 0:00:07]} Nf5 {[%emt 0:06:32]} 23. Nf3 {[%emt 0:00:58]} Bg3 {[%emt 0:04:26]} (23... Qxg4 $14 24. hxg4 Nxe3 25. Nxh4 Bd7) 24. Bd2 $1 $16 {[%emt 0:05:01][%cal Oe5e6] aiming for e6!} Rcd8 {[%emt 0:10:39] Strongly threatening ...Bxf3.} 25. Bb4 {[%emt 0:04:20]} (25. Ba5 $1 $16 {[%cal Ra5d8]} Rd3 26. e6 Rxf3 27. exf7+ (27. gxf3 Qxg4 28. exf7+ Rxf7 $14) 27... Rxf7 28. Qxg6 (28. gxf3 Qxg4 29. hxg4 Bxf3+ 30. Rg2 Ne3 $14) (28. Bxf7+ $2 Qxf7 29. gxf3 h5 $19) 28... hxg6 29. Bxf7+ (29. gxf3 Bxf3+ 30. Rg2 Nh4 $11) 29... Kxf7 30. Rgc1 (30. gxf3 Bxf3+ 31. Rg2 Nh4 $17)) 25... Rfe8 $14 {[%emt 0:01:20]} 26. Ng5 $2 {[%emt 0:08:31][%mdl 8192]} (26. Rad1 $16 {and life is bright.} Qxg4 27. hxg4) 26... h5 $1 $19 {[%emt 0:02:09]} 27. Bxf7+ {[%emt 0:04:14] [#]} Qxf7 $1 {[%emt 0:00:11][%mdl 512]} 28. Nxf7 {[%emt 0:00:17]} hxg4 {[%emt 0:00:15] Really sharp!} 29. Nxd8 {[%emt 0:00:14]} Rxd8 {[%emt 0:00:12]} 30. hxg4 {[%emt 0:06:58] [#]} Nd4 {[%emt 0:02:59]} (30... Ne3 $1 $19 {Hoping for ...Kf7.} 31. Rac1 Bd5) 31. Rgd1 $1 $11 {[%emt 0:03:15]} Kf7 $40 {[%emt 0:00:44][%mdl 128] Black is up to no good.} 32. e6+ {[%emt 0:04:31]} (32. Rd2 $5 {[%cal Ra1f1]}) 32... Kxe6 {[%emt 0:04:43]} 33. f5+ {[%emt 0:00:04]} Kf7 {[%emt 0:02:01][%mdl 1024] Black has compensation.} 34. Kg1 {[%emt 0:00:13] Against Bf2+} Be5 {[%emt 0:08:37]} (34... g6 $15) 35. Kf2 {[%emt 0:00:42]} g6 {[%emt 0:05:19]} 36. Bc3 {[%emt 0:03:10]} (36. Ba5 $11 {keeps the balance.} Rg8 37. Bc3) 36... gxf5 $17 {[%emt 0:01:21]} 37. gxf5 {[%emt 0:01:02]} b4 {[%emt 0:00:14]} 38. Bxb4 {[%emt 0:00:11]} (38. Rac1 $1 $15) 38... Rg8 $19 {[%emt 0:00:12]} 39. Bc3 {[%emt 0:03:19] [#]} Bg3+ $1 {[%emt 0:02:18] A strong pair of Bishops.} 40. Kg1 {[%emt 0:00:44]} (40. Ke3 $142 Nc2+ 41. Kd3 Nxa1 42. Rxa1) 40... Ne2+ {[%emt 0:05:07]} 41. Kf1 {[%emt 0:03:09]} Nxc3 {[%emt 0:11:33]} (41... Bb5 $19 42. a4 Nxc3+ 43. axb5 Nxd1 44. Rxd1 axb5) 42. bxc3 $15 {[%emt 0:00:08]} Rg5 {[%emt 0:00:56]} 43. Ke2 {[%emt 0:01:30]} Be5 {[%emt 0:02:24]} 44. a4 {[%emt 0:04:58][%cal Og2g3]} Rxg2+ {[%emt 0:00:43]} 45. Kd3 $1 {[%emt 0:01:22]} Rg4 {[%emt 0:05:09] Black has more active pieces.} 46. Re1 {[%emt 0:01:44]} Kf6 {[%emt 0:01:12]} 47. Rg1 {[%emt 0:05:12]} Bg2 {[%emt 0:00:28]} 48. Rge1 {[%emt 0:09:05]} Kxf5 {[%emt 0:00:41] And now ...Rg3+ would win.} (48... Bd5 {is more complex.} 49. Rad1 Bb3 50. Rd2 a5) 49. Re3 {[%emt 0:00:22]} Bf6 {[%emt 0:03:47]} 50. Re2 $2 {[%emt 0:01:53]} (50. Kc2 $17) 50... Be4+ $19 {[%emt 0:01:29]} 51. Ke3 $2 {[%emt 0:02:10]} (51. Rxe4 Rxe4 52. a5) 51... Rg3+ {[%emt 0:00:59]} 52. Kf2 {[%emt 0:00:11]} Bh4 {[%emt 0:01:12]} 53. Rea2 {[%emt 0:03:37]} Rh3+ {[%emt 0:01:40]} (53... Bd5 $142 54. Rb2 Rg2+ 55. Ke3 Rxb2) 54. Kf1 {[%emt 0:01:33]} Kf4 {[%emt 0:01:10] ( -> ...Kf3)} 55. c4 {[%emt 0:00:13]} (55. Ke2 $19) 55... Bf6 {[%emt 0:01:32]} 56. Rf2+ {[%emt 0:00:17]} Bf3 {[%emt 0:00:06] Weighted Error Value: White=0.54/Black=0.26 (precise)} 0-1

[Event "FIDE Womens Grand Prix-I 2022-23"]
[Site "Nur-Sultan"]
[Date "2022.09.23"]
[Round "6.2"]
[White "Kosteniuk, Alexandra"]
[Black "Zhu, Jiner"]
[Result "1/2-1/2"]
[ECO "B92"]
[WhiteElo "2521"]
[BlackElo "2464"]
[Annotator "TA"]
[PlyCount "96"]
[EventDate "2022.09.15"]
[EventType "tourn"]
[EventCountry "KAZ"]
[SourceTitle "playchess.com"]
[Source "ChessBase"]
[SourceQuality "1"]
[TimeControl "40/5400+30:1800+30"]

{[%evp 20,96,0,12,10,17,12,0,8,7,0,18,17,8,0,0,0,0,12,-19,3,0,0,-66,-69,-67,-62,-62,-52,-35,-54,-34,-25,-40,-17,-41,-7,-3,0,0,0,0,0,0,0,0,0,0,0,0,0,0,0,0,0,0,0,0,0,0,0,0,0,0,8,8,8,8,8,0,8,8,8,8,8,8,8,8,8]} 1. e4 {[%emt 0:00:04]} c5 {[%emt 0:00:17]} 2. Nf3 {[%emt 0:00:06]} d6 {[%emt 0:00:06]} 3. d4 {[%emt 0:00:04]} cxd4 {[%emt 0:00:05]} 4. Nxd4 {[%emt 0:00:03]} Nf6 {[%emt 0:00:07]} 5. Nc3 {[%emt 0:00:04]} a6 {[%emt 0:00:05]} 6. Be2 {[%emt 0:00:04]} e5 {[%emt 0:00:28]} 7. Nb3 {[%emt 0:00:05]} Be7 {[%emt 0:00:07]} 8. Be3 {[%emt 0:00:39]} Be6 {[%emt 0:00:13]} 9. O-O {[%emt 0:00:29]} O-O {[%emt 0:00:10]} 10. Bf3 {[%emt 0:00:12]} Nbd7 {[%emt 0:00:42]} 11. a4 {[%emt 0:00:16]} Qc7 {[%emt 0:01:16] B92: Sicilian Najdorf: 6 Be2.} 12. a5 {[%emt 0:00:37]} Rfc8 {[%emt 0:01:14]} 13. Re1 {[%emt 0:01:32]} h6 {[%emt 0:02:30]} 14. h3 {[%emt 0:00:35]} Rab8 {[%emt 0:02:23] seems to push 14...Qc6 aside.} 15. Nd2 {[%emt 0:02:35][%cal Bb3d2,Bd2f1,Bf1g3][%mdl 32]} Ra8 {[%emt 0:15:14] [#]} 16. Nf1 $146 {[%emt 0:05:51]} ({Predecessor:} 16. Qe2 Nc5 17. Rec1 Qc6 18. Rd1 Rd8 19. Nc4 Ncxe4 20. Nxe4 Bxc4 21. Nxf6+ Bxf6 22. Bxc6 Bxe2 23. Bxb7 {½-½ (60) Korchmar,V (2234)-David,A (2059) Prague 2012}) 16... b5 {[%emt 0:01:02]} 17. axb6 {[%emt 0:00:05]} Nxb6 {[%emt 0:00:04]} 18. Ng3 {[%emt 0:00:14]} Qb7 {[%emt 0:05:13]} 19. Bc1 {[%emt 0:06:00]} Bf8 {[%emt 0:02:41]} 20. Re3 {[%emt 0:06:10]} a5 {[%emt 0:10:24]} 21. Na4 {[%emt 0:08:50]} (21. Nh5 $11 Nxh5 22. Bxh5) 21... Nxa4 $1 $15 {[%emt 0:04:55]} 22. Rxa4 {[%emt 0:00:07]} Qc6 {[%emt 0:01:02][%csl LRa4,LRc2]} 23. c3 {[%emt 0:00:15]} Nd7 {[%emt 0:00:20][%cal Oe6b3]} (23... Rcb8 $5 {[%cal Re6b3]} 24. Ra1 a4 $15) 24. Bg4 {[%emt 0:02:38]} Bxg4 {[%emt 0:05:26]} 25. hxg4 {[%emt 0:00:06]} Rd8 {[%emt 0:08:18]} 26. Ra2 {[%emt 0:19:30]} Nf6 {[%emt 0:01:58]} 27. b3 {[%emt 0:06:26]} d5 {[%emt 0:00:27][%cal Rd5e4]} 28. Rd3 {[%emt 0:01:01] The position is equal.} Rd7 {[%emt 0:00:30]} 29. exd5 {[%emt 0:15:18]} Rxd5 {[%emt 0:00:31]} 30. g5 {[%emt 0:02:20]} Rad8 {[%emt 0:03:14]} 31. Rad2 {[%emt 0:00:55]} hxg5 {[%emt 0:02:29]} 32. Rxd5 {[%emt 0:05:13]} Rxd5 {[%emt 0:01:12]} 33. c4 {[%emt 0:00:09]} Rxd2 {[%emt 0:00:42]} 34. Bxd2 {[%emt 0:00:04]} Bc5 {[%emt 0:10:59]} 35. Bxg5 {[%emt 0:02:30]} Qb6 {[%emt 0:00:32] Inhibits Qd8+.} 36. Bxf6 {[%emt 0:00:53]} Bxf2+ {[%emt 0:06:47]} ({Don't play} 36... gxf6 37. Qg4+ Kf8 38. Qc8+ Kg7 39. Kh2 $16) 37. Kf1 {[%emt 0:00:06]} Bxg3 {[%emt 0:04:10][%csl Gg3][%cal Rb6f2] [#]} (37... Qxf6 $2 38. Ne4 Qc6 39. Nxf2 $18) (37... gxf6 $2 38. Qg4+ Kf8 39. Qc8+ Kg7 40. Nf5+ Kh7 41. Qf8 $18) 38. Qd8+ {[%emt 0:00:04]} Qxd8 {[%emt 0:00:06]} 39. Bxd8 $11 {[%emt 0:00:02][%mdl 4096] Endgame KB-KB} Kf8 {[%emt 0:01:12]} 40. Bxa5 {[%emt 0:00:23]} Ke7 {[%emt 0:00:29]} 41. b4 {[%emt 0:31:40]} Kd6 {[%emt 0:30:31]} 42. Bb6 {[%emt 0:01:40]} e4 {[%emt 0:06:09]} 43. b5 {[%emt 0:05:03]} f5 {[%emt 0:00:32][%cal Bf7f5,Bf5f4,Bf4f3][%mdl 32]} 44. Ba7 {[%emt 0:02:36] [#] Black must now prevent Bb8+.} f4 {[%emt 0:02:53]} 45. c5+ {[%emt 0:05:37]} Kd5 {[%emt 0:00:50]} 46. c6 {[%emt 0:00:28] c7 is the strong threat.} f3 {[%emt 0:00:09]} 47. Bb6 {[%emt 0:02:35]} Kc4 {[%emt 0:00:20]} 48. Bf2 {[%emt 0:01:16]} Kxb5 {[%emt 0:00:13] Weighted Error Value: White=0.06 (flawless) /Black=0.03 (flawless)} 1/2-1/2

[Event "FIDE Womens Grand Prix-I 2022-23"]
[Site "Nur-Sultan"]
[Date "2022.09.23"]
[Round "6.3"]
[White "Vaishali, Rameshbabu"]
[Black "Paehtz, Elisabeth"]
[Result "1-0"]
[ECO "B45"]
[WhiteElo "2449"]
[BlackElo "2477"]
[Annotator "TA"]
[PlyCount "121"]
[EventDate "2022.09.15"]
[EventType "tourn"]
[EventCountry "KAZ"]
[SourceTitle "playchess.com"]
[Source "ChessBase"]
[SourceQuality "1"]
[TimeControl "40/5400+30:1800+30"]

{[%evp 22,121,16,16,18,28,38,39,22,25,22,31,26,35,28,19,33,29,31,27,60,60,55,45,67,65,67,75,114,46,64,72,62,43,51,40,49,40,43,45,42,41,37,40,31,40,41,13,44,37,55,55,59,41,103,31,29,27,11,12,129,137,129,135,128,128,223,214,210,203,204,186,517,517,509,509,509,507,507,505,495,493,413,406,405,397,548,329,660,595,1693,1646,1523,1347,1325,1321,29989,29990,29990,29991,29991,29992]} 1. e4 {[%emt 0:00:39]} c5 {[%emt 0:00:04]} 2. Nf3 {[%emt 0:00:06]} e6 {[%emt 0:00:03]} 3. d4 {[%emt 0:00:07]} cxd4 {[%emt 0:00:03]} 4. Nxd4 {[%emt 0:00:04]} Nf6 {[%emt 0:00:04]} 5. Nc3 {[%emt 0:00:04]} Nc6 {[%emt 0:00:02]} 6. Nxc6 {[%emt 0:00:26]} bxc6 {[%emt 0:00:05]} 7. e5 {[%emt 0:00:04]} Nd5 {[%emt 0:00:03]} 8. Ne4 {[%emt 0:00:04]} Qc7 {[%emt 0:00:07]} 9. f4 {[%emt 0:00:06]} Qb6 {[%emt 0:00:11]} 10. c4 {[%emt 0:00:52]} Bb4+ {[%emt 0:00:26]} 11. Ke2 {[%emt 0:00:07]} f5 {[%emt 0:03:08]} 12. exf6 {[%emt 0:00:15]} Nxf6 {[%emt 0:00:04] B45: Sicilian Four Knights.} 13. Be3 {[%emt 0:00:15]} Qd8 {[%emt 0:00:04]} 14. Nd6+ {[%emt 0:00:15]} Bxd6 {[%emt 0:00:04] White is slightly better.} 15. Qxd6 {[%emt 0:00:04]} Bb7 {[%emt 0:00:29][%cal Oc6c5]} 16. Rd1 {[%emt 0:02:40]} Rc8 {[%emt 0:00:51][%cal Oc6c5]} 17. g4 {[%emt 0:15:31] And now g5 would win.} c5 {[%emt 0:00:04]} 18. Rg1 {[%emt 0:00:03][%cal Bh1g1,Bg1g2,Bg2e2,Be2e5][%mdl 32]} Rf8 {[%emt 0:00:04]} 19. Bg2 {[%emt 0:20:21]} ({Much worse is} 19. Bxc5 Rf7 20. Bxa7 Rxc4 $17) 19... Bxg2 {[%emt 0:01:54]} 20. Rxg2 {[%emt 0:00:03] [#] The board is on fire.} Qc7 $146 {[%emt 0:07:16]} ({Predecessor:} 20... Rf7 21. Kf1 Qb6 22. Kg1 Rc6 23. Qd3 d5 24. g5 dxc4 25. Qe2 Ng8 26. Qxc4 Ne7 {½-½ (58) Najer,E (2654)-Caruana,F (2800) Riga 2021}) 21. Qxc7 {[%emt 0:10:54]} Rxc7 {[%emt 0:00:04]} 22. Kf3 {[%emt 0:00:04]} Ke7 {[%emt 0:09:04]} 23. Re2 {[%emt 0:02:04]} h5 {[%emt 0:14:52]} 24. h3 {[%emt 0:06:51]} Rh8 {[%emt 0:12:59]} 25. Bf2 {[%emt 0:04:56]} (25. f5 $16) 25... hxg4+ $14 {[%emt 0:06:10]} 26. hxg4 {[%emt 0:00:19]} g6 {[%emt 0:02:12]} 27. Re5 {[%emt 0:22:18]} Rh2 {[%emt 0:01:34][%cal Oh2f2]} ({Much less strong is} 27... d6 28. Re2 $16) 28. Rd2 {[%emt 0:02:32]} Kf7 {[%emt 0:01:15]} 29. Kg3 {[%emt 0:06:11]} Rh1 {[%emt 0:04:11]} 30. g5 {[%emt 0:00:32]} ({Reject} 30. Rxc5 Ne4+ 31. Kg2 Nxc5 $11) 30... Nh5+ {[%emt 0:00:38]} 31. Kg2 {[%emt 0:00:03]} Rc1 {[%emt 0:01:14]} 32. Rxc5 {[%emt 0:04:34]} Rxc5 {[%emt 0:08:07]} 33. Bxc5 {[%emt 0:00:02]} Rxc4 {[%emt 0:00:27][%mdl 4096] Endgame KRB-KRN} 34. Bd6 {[%emt 0:00:47]} a6 {[%emt 0:03:55]} 35. Kf3 {[%emt 0:00:17]} Ng7 {[%emt 0:01:36]} 36. Be5 {[%emt 0:00:22]} d5 {[%emt 0:00:05]} 37. b3 {[%emt 0:02:16]} Rc6 {[%emt 0:00:59]} (37... Rc1 $14) 38. Bxg7 {[%emt 0:01:47] White has more active pieces.} (38. Rh2 $16 {Rh7 is the strong threat.} Nh5 39. b4) 38... Kxg7 $16 {[%emt 0:00:05] KR-KR} 39. Ke3 {[%emt 0:00:03]} Kf7 {[%emt 0:04:08]} 40. Rh2 {[%emt 0:00:57]} Ke7 {[%emt 0:01:07] White leaves nothing to chance now.} (40... e5 $11) 41. Kd4 {[%emt 0:09:55]} Rc1 {[%emt 0:04:31]} 42. Rh7+ $1 {[%emt 0:00:44]} Kd6 {[%emt 0:00:16]} 43. Ra7 $1 {[%emt 0:00:07]} Rc6 {[%emt 0:10:35]} (43... Rd1+ $16 {is a better defense.} 44. Kc3 a5) 44. Rg7 $18 {[%emt 0:00:59]} Rc1 {[%emt 0:11:09]} 45. Rxg6 {[%emt 0:00:29] Black must now prevent f5.} Rf1 {[%emt 0:01:21]} 46. Rf6 {[%emt 0:01:43] Strongly threatening f5.} Ke7 $2 {[%emt 0:00:07]} (46... Rd1+ {is a better chance.} 47. Ke3 Ke7) 47. f5 $1 {[%emt 0:03:47]} Rd1+ {[%emt 0:00:43]} 48. Kc5 {[%emt 0:09:01]} exf5 {[%emt 0:01:44]} 49. Rxf5 {[%emt 0:03:18]} Ke6 {[%emt 0:00:17]} 50. Rf6+ {[%emt 0:00:04]} Ke5 {[%emt 0:00:04]} 51. Rxa6 {[%emt 0:00:04]} Rc1+ {[%emt 0:00:19]} 52. Kb4 {[%emt 0:00:32] Threatens to win with g6.} d4 {[%emt 0:02:12] [#]} 53. g6 $1 {[%emt 0:00:05]} Rc7 {[%emt 0:00:45]} 54. Ra8 {[%emt 0:04:14]} Ke4 $2 {[%emt 0:04:51]} (54... Rb7+ 55. Kc4 Rc7+ 56. Kd3 Rc3+ 57. Ke2 Rg3) 55. Rg8 {[%emt 0:00:56]} d3 {[%emt 0:00:47]} 56. g7 {[%emt 0:01:52]} Re7 {[%emt 0:00:04]} 57. Kc3 {[%emt 0:00:18]} Ke3 {[%emt 0:04:54] [#]} 58. Rc8 $1 {[%emt 0:00:06]} d2 {[%emt 0:02:50]} 59. g8=Q {[%emt 0:00:06] White mates.} d1=Q {[%emt 0:00:04]} 60. Qg5+ {[%emt 0:00:06]} Kf2 {[%emt 0:00:05]} 61. Rf8+ {[%emt 0:00:05] Weighted Error Value: White=0.10 (very precise) /Black=0.43} 1-0

[Event "FIDE Womens Grand Prix-I 2022-23"]
[Site "Nur-Sultan"]
[Date "2022.09.23"]
[Round "6.4"]
[White "Goryachkina, Aleksandra"]
[Black "Wagner, Dinara"]
[Result "1/2-1/2"]
[ECO "E36"]
[WhiteElo "2579"]
[BlackElo "2358"]
[Annotator "TA"]
[PlyCount "109"]
[EventDate "2022.09.15"]
[EventType "tourn"]
[EventCountry "KAZ"]
[SourceTitle "playchess.com"]
[Source "ChessBase"]
[SourceQuality "1"]
[TimeControl "40/5400+30:1800+30"]

{[%evp 12,109,0,0,17,19,13,10,16,16,27,8,18,16,7,0,0,0,0,0,0,0,0,0,0,-12,-6,-31,-22,-33,-18,-31,-21,-29,-18,-22,-21,-40,0,0,0,0,0,0,0,0,0,0,0,0,0,0,0,0,0,0,0,0,0,0,73,73,73,73,73,73,73,73,73,73,73,73,73,73,73,73,73,24,24,0,0,0,0,0,0,0,0,0,0,0,0,0,19,19,19,19,19,19,19,19]} 1. d4 {[%emt 0:00:13] Krasenkow,Michal} Nf6 {[%emt 0:00:06]} 2. c4 {[%emt 0:00:10]} e6 {[%emt 0:00:04]} 3. Nc3 {[%emt 0:00:21]} Bb4 {[%emt 0:00:07]} 4. Qc2 {[%emt 0:00:44]} d5 {[%emt 0:00:11]} 5. a3 {[%emt 0:01:40]} Bxc3+ {[%emt 0:00:16]} 6. Qxc3 {[%emt 0:00:18]} O-O {[%emt 0:00:09]} 7. Bg5 {[%emt 0:01:10]} h6 {[%emt 0:00:40] E36: Nimzo-Indian: Classical: 4...d5 5 a3.} 8. Bxf6 {[%emt 0:05:48]} Qxf6 {[%emt 0:00:19]} 9. Nf3 {[%emt 0:01:50]} dxc4 $1 {[%emt 0:01:03] 9...dxc4 scores better than 9...c6.} 10. Qxc4 {[%emt 0:02:45]} Nc6 {[%emt 0:00:25]} 11. Qc3 {[%emt 0:03:01]} Re8 {[%emt 0:00:20]} 12. Ne5 {[%emt 0:04:29] [#]} Nxe5 $146 {[%emt 0:10:39]} ({Predecessor:} 12... Rb8 13. g3 Rd8 14. e3 Nxe5 15. dxe5 Qf3 16. Rg1 Qc6 17. Qxc6 bxc6 18. Rb1 c5 {0-1 (110) Topalov,V (2740)-Ding,L (2812) Shamkir 2019 CBM 190 [Krasenkow,Michal]}) 13. dxe5 {[%emt 0:00:03]} Qe7 {[%emt 0:00:08]} 14. g3 {[%emt 0:02:54]} c5 {[%emt 0:02:55]} 15. Bg2 {[%emt 0:00:54]} Rb8 $1 {[%emt 0:00:23]} 16. O-O {[%emt 0:06:26]} b6 {[%emt 0:00:46]} 17. Rfd1 {[%emt 0:12:04]} Ba6 {[%emt 0:05:25]} 18. Bf3 {[%emt 0:02:33]} Red8 {[%emt 0:01:09] Prevents Rd6.} 19. Qc2 {[%emt 0:02:45]} Bb7 {[%emt 0:20:00]} 20. Bxb7 {[%emt 0:07:13]} Rxb7 {[%emt 0:01:58]} ({Don't do} 20... Qxb7 21. Rd6 $14) 21. b4 {[%emt 0:01:55]} cxb4 {[%emt 0:09:31]} 22. axb4 {[%emt 0:02:32]} Rbd7 {[%emt 0:01:10]} 23. Rxd7 {[%emt 0:06:01]} Qxd7 $11 {[%emt 0:09:55][%mdl 4096] Endgame KQR-KQR} 24. Qe4 {[%emt 0:04:50]} Qd4 {[%emt 0:09:03]} 25. Qxd4 {[%emt 0:00:15]} Rxd4 {[%emt 0:00:02]} 26. Rxa7 {[%emt 0:00:12]} Rxb4 {[%emt 0:00:04] KR-KR} 27. Kf1 {[%emt 0:00:29]} Rb1+ {[%emt 0:01:37]} 28. Kg2 {[%emt 0:00:02]} h5 {[%emt 0:00:06]} 29. Rb7 {[%emt 0:00:36]} b5 {[%emt 0:00:03][%cal Bb6b5,Bb5b4,Bb4b3,Bb3b2][%mdl 32]} 30. h4 {[%emt 0:05:23]} b4 {[%emt 0:01:20]} 31. Kf3 {[%emt 0:00:30]} b3 {[%emt 0:00:58]} 32. Kf4 {[%emt 0:03:27]} g6 {[%emt 0:10:10]} 33. Ke3 {[%emt 0:06:50]} b2 {[%emt 0:02:20]} 34. Kf3 {[%emt 0:02:13]} Kg7 {[%emt 0:00:09]} 35. e3 {[%emt 0:00:35]} Kf8 {[%emt 0:06:25] [#]} (35... Kh6 $11 {keeps the balance.}) 36. Kf4 $1 $16 {[%emt 0:00:50]} Kg8 {[%emt 0:00:37]} 37. Kg5 {[%emt 0:01:46]} Kg7 {[%emt 0:00:03]} 38. Rb8 {[%emt 0:02:48] White is more active.} Rc1 {[%emt 0:01:46]} 39. Rxb2 {[%emt 0:00:08]} Rc4 {[%emt 0:00:31][%csl Gh5][%cal Rc4g4] [#]} 40. f3 {[%emt 0:00:58] Against Rg4+} Rc5 {[%emt 0:02:16]} 41. Kf4 {[%emt 0:30:15]} Rc4+ {[%emt 0:30:04]} 42. e4 {[%emt 0:00:50]} Rc5 {[%emt 0:00:45]} 43. Rg2 {[%emt 0:03:27]} Kh6 {[%emt 0:02:24]} 44. g4 {[%emt 0:06:02]} (44. Ra2 $16) 44... hxg4 $11 {[%emt 0:00:00]} 45. fxg4 {[%emt 0:00:00]} Ra5 {[%emt 0:00:00] The position is equal.} 46. Rf2 {[%emt 0:00:00]} Kg7 {[%emt 0:00:00]} 47. h5 {[%emt 0:00:00]} gxh5 {[%emt 0:00:00]} 48. gxh5 {[%emt 0:00:00]} Kh6 {[%emt 0:00:00]} 49. Ke3 {[%emt 0:00:00]} Rxe5 {[%emt 0:00:00] Hoping for ...f5.} 50. Rxf7 {[%emt 0:00:00]} Rxh5 {[%emt 0:00:00]} 51. Rf6+ {[%emt 0:00:00]} Kg7 {[%emt 0:00:00]} 52. Rxe6 {[%emt 0:00:00]} Kf7 {[%emt 0:00:00]} 53. Ra6 {[%emt 0:00:00]} Ke7 {[%emt 0:00:00]} 54. Kd4 {[%emt 0:00:00]} Rg5 {[%emt 0:00:00]} 55. Ra7+ {[%emt 0:00:00] Weighted Error Value: White=0.03 (flawless) /Black=0.05 (flawless)} 1/2-1/2